bitfinex/quotes_SOLUSD_20240716
["timestamp","ask_amount","ask_price","bid_price","bid_amount"]
[1721145885125,2.36184194,161.87,161.79,15.4512]
[1721145885324,2.36184194,161.87,161.84,6.1788]
[1721145885524,2.36184194,161.87,161.83,15.4477]
[1721145885846,2.36184194,161.87,161.83,6.179]
[1721145886139,2.36184194,161.87,161.81,15.4495]
[1721145886339,2.36184194,161.87,161.84,6.1786]
[1721145886640,2.36184194,161.87,161.83,21.6269]
[1721145886824,2.36184194,161.87,161.84,6.1787]
[1721145887021,2.36184194,161.87,161.85,6.1784]
[1721145887236,2.36184194,161.87,161.86,15.4454]
[1721145887541,2.36184194,161.87,161.84,6.1788]
[1721145887737,2.36184194,161.87,161.86,6.1781]
[1721145888238,2.36184194,161.87,161.86,26.1781]
[1721145888736,0.8286455,161.96,161.86,35.8504]
[1721145889033,0.8286455,161.96,161.95,6.1747]
[1721145889246,0.8286455,161.96,161.93,15.4378]
[1721145889635,0.8286455,161.96,161.88,56.0431]
[1721145889831,0.8286455,161.96,161.88,6.1771]
[1721145890032,0.8286455,161.96,161.89,6.1769]
[1721145890225,0.8286455,161.96,161.88,6.1773]
[1721145890522,0.8286455,161.96,161.93,6.1754]
[1721145890841,0.8286455,161.96,161.91,6.1761]
[1721145891029,0.8286455,161.96,161.9,15.4409]
[1721145891337,0.8286455,161.96,161.93,6.1754]
[1721145891538,0.8286455,161.96,161.95,6.1747]
[1721145892063,0.8286455,161.96,161.95,24.7847]
[1721145892218,0.8286455,161.96,161.95,26.1747]
[1721145893425,0.8286455,161.96,161.95,44.7847]
[1721145894141,0.8286455,161.96,161.95,26.1747]
[1721145894324,4.55e-05,161.96,161.95,44.7847]
[1721145895343,1.722928,162.0,161.99,21.6062]
[1721145895639,1.722928,162.0,161.99,41.6062]
[1721145895861,0.03887676,162.03,162.02,21.6021]
[1721145896168,0.03887676,162.03,162.02,41.6021]
[1721145896846,0.03887676,162.03,162.02,20.0]
[1721145897036,0.03887676,162.03,162.0,6.1725]
[1721145897037,0.03887676,162.03,162.01,20.0]
[1721145897244,0.03887676,162.03,162.02,6.172]
[1721145897458,0.8286455,162.12,162.02,20.0]
[1721145897643,0.8286455,162.12,162.03,20.0]
[1721145898051,0.8286455,162.12,162.11,6.1686]
[1721145898262,0.8286455,162.12,162.1,15.4223]
[1721145898571,0.8286455,162.12,162.11,6.1686]
[1721145898862,0.8286455,162.12,162.11,26.1686]
[1721145899254,0.8286455,162.28,162.15,6.1668]
[1721145899603,0.8286455,162.28,162.14,15.4182]
[1721145899864,0.8286455,162.28,162.11,20.0]
[1721145900036,10.8286455,162.28,162.1,40.6]
[1721145900370,6.1627,162.27,162.11,6.1685]
[1721145900659,0.8286455,162.28,162.07,15.8058]
[1721145900868,10.0,162.27,162.07,15.8058]
[1721145901041,10.0,162.27,162.1,21.5909]
[1721145901363,0.8286455,162.28,162.12,6.1679]
[1721145901548,0.8286455,162.28,162.1,15.4223]
[1721145901740,6.1658,162.19,162.07,15.8058]
[1721145901941,25.4112,162.22,162.04,6.3104]
[1721145902163,6.1656,162.19,162.04,6.3104]
[1721145902366,6.1644,162.23,162.05,6.1707]
[1721145902551,6.165,162.21,162.06,0.30914931]
[1721145902741,6.1653,162.2,162.04,6.3104]
[1721145903065,10.0,162.23,162.04,6.3104]
[1721145903066,0.34,162.19,162.04,6.3104]
[1721145903559,6.7384,162.18,161.98,15.4331]
[1721145903764,20.17,162.17,161.99,0.62447317]
[1721145903960,6.1671,162.15,162.0,0.50317163]
[1721145904174,20.34,162.14,161.97,46.8947]
[1721145904469,0.17,162.13,162.04,15.4281]
[1721145904642,0.17,162.16,162.05,6.79494197]
[1721145904852,6.1672,162.15,161.97,46.8947]
[1721145905043,0.34,162.14,162.0,6.1727]
[1721145905249,10.0,162.13,161.93,16.5429]
[1721145905549,0.17,162.12,161.95,30.8736]
[1721145905751,20.17,162.17,161.95,30.8736]
[1721145905752,6.5684,162.18,162.05,6.1709]
[1721145905972,6.5684,162.18,162.06,6.1702]
[1721145906274,6.5684,162.18,162.08,15.4243]
[1721145906647,6.5684,162.18,162.04,15.4273]
[1721145906843,6.5684,162.18,162.03,6.1131]
[1721145907107,6.5684,162.18,162.03,6.1716]
[1721145907252,6.5684,162.18,162.06,15.4261]
[1721145907573,6.5684,162.18,162.04,20.0]
[1721145907774,10.0,162.25,162.05,18.61]
[1721145907775,6.1218,162.23,162.05,18.61]
[1721145907946,6.1218,162.23,162.0,8.06936663]
[1721145907947,6.1218,162.23,162.1,6.169]
[1721145908154,6.1218,162.23,162.07,18.61]
[1721145908485,6.1218,162.23,162.11,15.4208]
[1721145908782,6.1218,162.23,162.08,20.0]
[1721145909075,24.7318,162.23,162.07,15.4251]
[1721145909252,24.7318,162.23,162.05,15.4294]
[1721145909571,24.7318,162.23,162.03,40.6]
[1721145909572,10.0,162.2,162.0,40.6]
[1721145909758,6.1644,162.22,162.06,6.1703]
[1721145909960,0.34,162.21,162.08,6.1696]
[1721145910175,0.34,162.22,162.03,18.61]
[1721145910349,0.17,162.22,162.03,18.61]
[1721145910549,20.17,162.22,162.05,15.4264]
[1721145910783,6.1218,162.23,162.09,6.1692]
[1721145910983,6.1218,162.23,162.08,15.4239]
[1721145911154,6.1218,162.23,162.15,6.167]
[1721145911360,6.1218,162.23,162.05,59.21]
[1721145911581,24.7318,162.23,162.06,20.0]
[1721145911772,6.1218,162.23,162.13,6.1678]
[1721145911977,6.1218,162.23,162.12,15.4197]
[1721145912177,0.8286455,162.28,162.12,18.61]
[1721145912358,0.8286455,162.28,162.19,15.4133]
[1721145912557,0.8286455,162.28,162.04,6.2289]
[1721145912777,0.8286455,162.28,162.17,15.4158]
[1721145912986,0.8286455,162.28,162.19,6.1655]
[1721145913280,0.8286455,162.28,162.13,6.1678]
[1721145913490,0.8286455,162.28,162.1,46.2663]
[1721145913662,0.8286455,162.28,162.11,18.61]
[1721145913861,0.17,162.27,162.15,15.4175]
[1721145914182,0.17,162.27,162.11,18.61]
[1721145914183,40.6,162.23,162.0,16.5678]
[1721145914490,28.61,162.18,162.0,15.432]
[1721145914658,6.1681,162.13,161.95,18.61]
[1721145914857,20.34,162.12,161.96,18.61]
[1721145915076,6.3253,162.11,161.96,6.1742]
[1721145915387,20.34,162.1,161.96,15.4358]
[1721145915685,20.34,162.1,161.95,6.1743]
[1721145915883,20.34,162.1,161.97,6.1739]
[1721145916059,20.34,162.1,161.98,15.4331]
[1721145916474,20.34,162.1,161.99,6.173]
[1721145916671,20.34,162.1,161.98,15.4331]
[1721145916980,20.34,162.1,161.94,15.4369]
[1721145917354,20.34,162.1,161.97,15.4344]
[1721145917757,20.34,162.1,161.93,18.61]
[1721145917979,20.34,162.1,161.96,15.4357]
[1721145918157,20.34,162.1,161.87,6.2582]
[1721145918360,20.34,162.1,161.94,6.1751]
[1721145918680,20.34,162.1,161.95,15.4365]
[1721145918989,20.34,162.1,161.92,18.61]
[1721145918990,20.34,162.1,161.87,6.2582]
[1721145919166,20.34,162.1,161.9,0.32101203]
[1721145919368,6.1701,162.08,161.92,6.1758]
[1721145919556,20.34,162.07,161.87,6.2582]
[1721145919757,0.17,162.07,161.88,18.61]
[1721145919962,0.17,162.06,161.95,6.1746]
[1721145920264,0.17,162.07,161.93,15.4378]
[1721145920680,0.17,162.07,161.92,6.1757]
[1721145920861,20.34,162.07,161.92,6.1757]
[1721145921060,20.34,162.07,161.93,15.4384]
[1721145921271,20.34,162.07,161.93,6.1754]
[1721145921476,0.34,162.07,161.92,6.1758]
[1721145921675,26.5103,162.07,161.9,15.4415]
[1721145921876,6.1706,162.06,161.91,1.01752675]
[1721145922103,20.34,162.05,161.91,1.01752675]
[1721145922276,20.34,162.05,161.91,7.19372675]
[1721145922471,20.34,162.05,161.92,7.23304149]
[1721145922668,20.34,162.05,161.93,6.1754]
[1721145922871,20.34,162.05,161.9,15.4415]
[1721145923161,20.34,162.05,161.92,6.1758]
[1721145923378,20.34,162.05,161.9,15.4415]
[1721145923562,20.34,162.05,161.92,15.439]
[1721145924082,20.34,162.05,161.92,21.6147]
[1721145924384,20.34,162.05,161.92,15.439]
[1721145924977,20.34,162.05,161.89,15.4425]
[1721145925170,20.34,162.05,161.9,6.1766]
[1721145925487,20.34,162.05,161.89,15.4425]
[1721145925998,20.34,162.05,161.92,15.4395]
[1721145926161,20.34,162.05,161.93,6.1753]
[1721145926362,56.4474,162.06,161.92,15.4395]
[1721145926586,6.3253,162.11,161.99,6.1732]
[1721145926767,6.3253,162.11,162.0,0.483522]
[1721145926971,6.3253,162.11,161.98,15.4339]
[1721145927169,16.3253,162.11,161.8,10.0]
[1721145927487,6.3253,162.11,161.93,15.4385]
[1721145927665,6.3253,162.11,161.87,10.0]
[1721145927865,6.3253,162.11,161.97,6.1738]
[1721145928089,6.3253,162.11,161.96,15.4351]
[1721145928392,6.3253,162.11,161.93,15.4386]
[1721145928595,16.3253,162.11,161.93,15.4386]
[1721145928886,6.1695,162.09,161.93,21.6139]
[1721145929096,56.9253,162.11,161.94,6.175]
[1721145929288,26.1691,162.1,161.94,6.175]
[1721145929608,0.17,162.09,161.95,6.1747]
[1721145929788,0.34,162.09,161.93,15.4386]
[1721145929999,6.1701,162.08,161.93,15.4386]
[1721145930167,0.34,162.07,161.93,15.4386]
[1721145930491,0.17,162.06,161.94,1.23465557]
[1721145930698,0.34,162.06,161.94,1.23465557]
[1721145931193,0.34,162.06,161.92,6.1758]
[1721145931401,0.34,162.06,161.91,15.4404]
[1721145931764,6.5108,162.06,161.92,1.23462534]
[1721145932085,67.127,162.05,161.93,1.23482498]
[1721145932393,0.34,162.04,161.93,1.23482498]
[1721145932594,0.34,162.04,161.92,6.1758]
[1721145933089,0.34,162.04,161.91,15.4398]
[1721145933289,0.34,162.04,161.92,1.23472958]
[1721145933498,0.34,162.04,161.93,1.23486273]
[1721145933791,0.34,162.04,161.89,1.23480621]
[1721145933974,0.34,162.04,161.9,1.23486364]
[1721145934390,0.34,162.04,161.92,6.1757]
[1721145934573,0.34,162.04,161.93,1.23478647]
[1721145935102,25.1213,162.04,161.88,15.4434]
[1721145935266,20.0,162.03,161.89,1.23493797]
[1721145935471,0.34,162.02,161.9,7.41135062]
[1721145935769,0.34,162.02,161.92,6.1758]
[1721145935966,0.34,162.02,161.93,1.23462184]
[1721145936169,0.34,162.03,161.93,1.23462184]
[1721145936398,6.527,162.05,161.96,21.61]
[1721145936588,6.527,162.05,161.86,49.4996]
[1721145936896,6.527,162.05,161.91,18.61]
[1721145937084,6.527,162.05,161.94,6.1749]
[1721145937391,6.527,162.05,161.92,15.4388]
[1721145937605,6.527,162.05,161.89,15.4422]
[1721145937891,6.527,162.05,162.01,6.1724]
[1721145938082,16.3633,162.12,162.02,1.23334917]
[1721145938083,6.527,162.11,162.02,1.23334917]
[1721145938294,6.527,162.11,162.04,6.1712]
[1721145938472,6.527,162.11,162.04,15.4281]
[1721145938676,6.527,162.11,162.01,21.6034]
[1721145938890,6.527,162.11,161.99,6.1731]
[1721145939093,6.527,162.11,162.01,6.1724]
[1721145939298,6.527,162.11,162.02,6.172]
[1721145939609,6.527,162.11,162.04,15.4278]
[1721145940095,6.527,162.11,162.09,6.1693]
[1721145940410,22.5649,162.18,162.12,6.1682]
[1721145940573,22.5649,162.18,162.06,30.8515]
[1721145940973,22.5649,162.18,162.14,6.1675]
[1721145941190,22.5649,162.18,162.15,6.167]
[1721145941511,22.5649,162.18,162.11,6.1684]
[1721145941676,41.1249,162.18,161.99,18.56]
[1721145941995,63.1649,162.18,162.01,18.56]
[1721145942197,22.5649,162.18,162.1,6.1687]
[1721145942403,41.1249,162.18,162.05,15.427]
[1721145942706,41.1249,162.18,162.06,6.1702]
[1721145942998,9.0452,162.16,161.92,40.6]
[1721145943203,59.16,162.14,161.9,40.6]
[1721145943387,20.34,162.13,161.9,40.6]
[1721145943898,20.34,162.13,161.91,18.56]
[1721145944104,0.34,162.13,162.04,15.4274]
[1721145944399,0.34,162.13,162.07,15.4252]
[1721145944626,9.0452,162.16,162.1,6.1687]
[1721145944896,6.527,162.18,162.01,18.56]
[1721145945092,6.527,162.18,162.13,6.1677]
[1721145945288,6.527,162.18,162.11,21.5893]
[1721145945599,2.8751,162.17,161.93,30.8767]
[1721145945898,2.8751,162.17,161.94,16.4416]
[1721145946079,2.8751,162.17,161.94,26.4416]
[1721145946282,6.527,162.18,161.97,40.6]
[1721145946494,6.527,162.18,162.02,18.56]
[1721145946683,6.527,162.18,162.01,40.6]
[1721145946684,6.527,162.18,162.07,30.85]
[1721145947182,6.527,162.18,162.16,6.1667]
[1721145947391,6.527,162.18,162.15,15.4169]
[1721145947699,6.527,162.18,162.13,6.1678]
[1721145948699,6.1347,162.24,162.12,30.8407]
[1721145948902,6.1347,162.24,162.19,6.1655]
[1721145949107,6.1347,162.24,162.2,6.1651]
[1721145949312,6.1347,162.24,162.2,15.413]
[1721145949616,6.1347,162.24,162.16,15.416]
[1721145949804,6.1347,162.24,162.1,6.1347]
[1721145950004,6.1347,162.24,162.13,21.5874]
[1721145950187,24.6947,162.24,162.13,15.4196]
[1721145950391,10.0,162.19,162.06,6.1701]
[1721145950594,0.17,162.18,162.08,6.1697]
[1721145950789,0.17,162.12,162.06,15.4254]
[1721145950995,0.17,162.12,162.06,21.5955]
[1721145951192,0.17,162.12,162.06,15.4254]
[1721145951414,0.34,162.12,162.07,6.1701]
[1721145951707,0.34,162.12,162.08,15.4237]
[1721145951882,0.17,162.12,162.08,15.4237]
[1721145952088,0.17,162.12,162.08,21.5931]
[1721145952316,0.17,162.12,162.0,64.4365]
[1721145952498,0.17,162.12,162.07,6.1701]
[1721145952499,0.34,162.12,162.07,6.1701]
[1721145952696,0.34,162.12,162.0,64.4365]
[1721145952697,0.34,162.12,162.08,6.1697]
[1721145953005,0.17,162.12,162.09,6.1693]
[1721145953211,0.17,162.12,162.08,21.594]
[1721145953509,0.17,162.12,162.08,15.4243]
[1721145953702,6.9911455,162.28,162.11,15.4216]
[1721145953897,10.0,162.23,162.11,15.4216]
[1721145954102,18.56,162.21,162.1,6.169]
[1721145954407,10.0,162.21,162.08,21.5937]
[1721145954595,16.1347,162.24,162.09,6.1692]
[1721145954795,40.6,162.18,162.0,30.8631]
[1721145954992,19.1795,162.21,162.05,15.4264]
[1721145955296,38.9,162.2,162.07,15.4247]
[1721145955482,38.9,162.2,162.08,6.1697]
[1721145955687,38.9,162.2,162.07,15.4247]
[1721145955923,38.9,162.2,162.0,49.4231]
[1721145955924,38.9,162.2,162.11,6.1685]
[1721145956085,27.7395,162.21,162.11,6.1685]
[1721145956286,27.7395,162.21,162.1,15.4225]
[1721145956698,28.56,162.2,162.06,15.4255]
[1721145956894,28.56,162.18,162.06,15.4255]
[1721145957111,27.7395,162.21,162.08,15.4238]
[1721145957488,18.56,162.19,162.08,15.4238]
[1721145957691,18.56,162.11,161.92,18.56]
[1721145957894,0.34,162.1,162.01,6.1721]
[1721145958181,0.34,162.1,162.01,15.4305]
[1721145958404,0.34,162.1,161.98,6.1732]
[1721145958594,0.34,162.1,161.99,6.1729]
[1721145958787,0.34,162.1,161.98,6.1732]
[1721145958994,0.17,162.09,161.97,46.3035]
[1721145959207,34.8644,162.1,161.93,15.4381]
[1721145959421,18.56,162.08,161.93,15.4381]
[1721145959710,0.34,162.07,161.95,15.4362]
[1721145959927,0.17,162.06,161.97,6.1739]
[1721145960220,0.17,162.07,162.01,15.4303]
[1721145960590,0.17,162.07,162.01,21.6027]
[1721145961000,6.3044,162.1,162.03,6.1715]
[1721145961200,6.3044,162.1,162.04,15.4279]
[1721145961513,6.3044,162.1,161.96,30.8703]
[1721145961697,6.3044,162.1,162.02,21.6013]
[1721145962008,6.3044,162.1,162.03,6.1715]
[1721145962212,6.3044,162.1,162.02,15.4296]
[1721145962602,0.17,162.09,161.98,15.4335]
[1721145962791,38.73,162.09,161.98,15.4335]
[1721145962993,0.17,162.09,161.93,30.8764]
[1721145963210,0.17,162.09,162.02,15.4295]
[1721145963417,0.34,162.09,162.02,15.4295]
[1721145963618,0.34,162.09,162.0,6.1726]
[1721145963792,0.34,162.09,161.93,30.8764]
[1721145964112,0.34,162.09,161.97,15.4342]
[1721145964420,0.34,162.09,161.99,6.1729]
[1721145964603,0.34,162.09,162.0,6.1727]
[1721145964799,0.34,162.09,162.03,6.1716]
[1721145965005,0.17,162.09,161.98,6.1732]
[1721145965202,0.17,162.09,161.98,15.4337]
[1721145965397,0.17,162.09,161.98,21.607]
[1721145965603,0.17,162.09,162.0,6.1725]
[1721145965917,0.17,162.09,161.98,15.4337]
[1721145965918,6.3044,162.1,161.97,30.869]
[1721145966096,6.3044,162.1,162.03,6.1715]
[1721145966419,6.3044,162.1,162.0,21.6044]
[1721145966618,6.3044,162.1,162.01,6.1721]
[1721145966827,6.3044,162.1,162.0,15.4316]
[1721145967015,6.3044,162.1,162.02,6.1719]
[1721145967211,6.3044,162.1,161.97,30.869]
[1721145967414,6.3044,162.1,161.97,15.4348]
[1721145967415,24.8644,162.1,161.97,15.4348]
[1721145967610,6.3044,162.1,161.97,15.4348]
[1721145967807,6.3044,162.1,162.0,6.1728]
[1721145968009,6.3044,162.1,161.99,15.4325]
[1721145968220,6.3044,162.1,162.05,6.1705]
[1721145968396,6.5481,162.17,161.99,18.56]
[1721145968727,6.5481,162.17,162.1,6.1689]
[1721145968913,6.5481,162.17,162.09,21.5923]
[1721145969120,6.5481,162.17,162.09,15.423]
[1721145969313,18.56,162.16,161.96,18.56]
[1721145969505,18.56,162.16,162.05,6.1706]
[1721145969823,6.5481,162.17,162.02,32.98]
[1721145970006,6.5481,162.17,162.09,15.4228]
[1721145970214,6.5481,162.17,162.06,15.4259]
[1721145970412,6.5481,162.17,162.06,21.5963]
[1721145970934,6.5481,162.17,162.02,32.98]
[1721145971106,6.5481,162.17,162.07,6.1698]
[1721145971299,6.5481,162.17,162.07,15.4251]
[1721145971506,6.5481,162.17,162.09,15.4229]
[1721145971706,6.5481,162.17,162.09,21.5922]
[1721145974908,10.0,162.26,162.15,6.1669]
[1721145975106,10.0,162.26,162.13,15.419]
[1721145975308,10.0,162.23,162.1,6.1687]
[1721145975507,18.56,162.22,162.1,21.591]
[1721145975730,18.56,162.22,162.11,6.1684]
[1721145975916,10.0,162.23,162.07,6.1698]
[1721145975917,18.56,162.19,162.07,6.1698]
[1721145976218,10.0,162.22,162.05,30.854]
[1721145976423,32.98,162.26,162.05,30.854]
[1721145976424,20.34,162.21,162.1,6.1689]
[1721145976729,48.9,162.21,162.1,15.4221]
[1721145976932,28.9,162.21,162.1,15.4221]
[1721145977108,20.0,162.2,162.1,15.4221]
[1721145977308,20.0,162.23,162.11,6.1682]
[1721145977509,20.0,162.23,162.1,15.4221]
[1721145977510,10.0,162.22,162.1,15.4221]
[1721145977725,20.0,162.21,162.09,6.1691]
[1721145977909,20.0,162.21,162.08,15.424]
[1721145978109,20.0,162.21,162.1,6.1689]
[1721145978334,10.17,162.2,162.08,15.424]
[1721145978536,20.17,162.19,162.08,15.424]
[1721145978749,0.17,162.18,162.09,6.1693]
[1721145979037,20.0,162.19,162.11,15.4214]
[1721145979341,10.0,162.25,162.14,21.5854]
[1721145979648,20.0,162.24,162.07,51.54]
[1721145979838,38.56,162.24,162.14,15.4185]
[1721145980040,38.56,162.24,162.14,21.5856]
[1721145980420,38.56,162.24,162.15,6.167]
[1721145980615,9.0147,162.27,162.16,15.4162]
[1721145981014,12.58995749,162.27,162.11,32.98]
[1721145981337,12.58995749,162.27,162.15,15.4173]
[1721145981560,10.0,162.25,162.08,32.98]
[1721145981839,10.0,162.23,162.11,15.4207]
[1721145982010,28.56,162.21,162.07,6.1699]
[1721145982212,18.56,162.21,162.08,15.4239]
[1721145982437,0.34,162.2,162.06,30.851]
[1721145982742,0.34,162.21,162.1,21.5908]
[1721145982950,28.9,162.21,162.1,15.4219]
[1721145983241,25.0629,162.19,162.04,15.8074]
[1721145983422,0.34,162.18,162.09,6.1693]
[1721145983624,0.34,162.18,162.07,15.4253]
[1721145983821,28.56,162.17,162.01,15.4307]
[1721145984120,0.17,162.16,162.06,6.1705]
[1721145984320,0.34,162.16,162.06,6.1705]
[1721145984532,18.56,162.13,162.0,30.8635]
[1721145984735,0.34,162.12,161.98,16.2275]
[1721145984937,48.9,162.12,161.98,6.1732]
[1721145985130,48.9,162.12,161.94,6.2274]
[1721145985822,48.9,162.12,162.01,6.1722]
[1721145986351,20.34,162.12,162.02,15.43]
[1721145986638,0.34,162.12,162.04,15.4276]
[1721145986842,0.34,162.12,162.08,15.4241]
[1721145987026,6.5029,162.19,162.01,32.98]
[1721145987224,35.8551,162.22,161.94,6.2274]
[1721145987225,32.98,162.12,161.94,6.2274]
[1721145987435,18.56,162.11,161.94,6.1751]
[1721145987627,18.56,162.09,161.95,6.1744]
[1721145987824,18.56,162.09,161.92,15.4389]
[1721145988139,10.0,162.1,161.99,6.173]
[1721145988346,10.0,162.08,161.94,15.4373]
[1721145988638,6.4977,162.04,161.89,12.83296992]
[1721145988844,0.34,162.03,161.97,6.1737]
[1721145989031,0.34,162.03,161.92,32.98]
[1721145989226,0.34,162.03,161.95,15.4364]
[1721145989750,0.34,162.03,161.92,32.98]
[1721145989751,0.34,162.03,161.99,21.6061]
[1721145990048,26.4977,162.09,162.03,15.4289]
[1721145990218,6.4977,162.09,161.93,58.85]
[1721145990419,20.0,162.08,161.94,15.4373]
[1721145990613,28.56,162.07,161.94,15.4373]
[1721145990832,18.56,162.02,161.89,21.6188]
[1721145991152,18.56,162.02,161.89,15.4419]
[1721145991320,45.02050583,162.01,161.9,6.1765]
[1721145991520,0.34,162.0,161.91,6.1762]
[1721145991739,0.34,162.0,161.89,15.4419]
[1721145991946,0.34,162.0,161.93,6.1755]
[1721145992240,0.34,162.0,161.89,15.4419]
[1721145992241,0.34,162.0,161.89,21.6187]
[1721145992442,0.34,162.0,161.9,6.1765]
[1721145992639,0.34,162.0,161.89,15.4419]
[1721145993322,0.34,162.0,161.87,16.2039]
[1721145993528,25.0577,161.99,161.84,28.480513]
[1721145993753,0.34,161.98,161.84,21.907313]
[1721145993925,0.34,161.98,161.84,6.460813]
[1721145993926,10.0,161.95,161.84,6.460813]
[1721145994125,16.4977,161.87,161.68,24.766061]
[1721145994345,10.0,161.84,161.69,15.4612]
[1721145994666,20.34,161.83,161.69,15.4612]
[1721145994837,20.34,161.83,161.72,16.2871455]
[1721145995148,0.34,161.83,161.72,0.8286455]
[1721145995353,0.34,161.83,161.77,6.1812]
[1721145995658,0.17,161.82,161.72,0.8286455]
[1721145995824,0.17,161.83,161.72,0.8286455]
[1721145996021,0.17,161.83,161.74,15.4566]
[1721145996256,0.17,161.83,161.72,0.8286455]
[1721145996552,0.17,161.83,161.73,15.4573]
[1721145996730,0.17,161.83,161.76,15.4545]
[1721145996935,20.0,161.86,161.76,15.4545]
[1721145997142,20.0,161.86,161.77,6.1815]
[1721145997341,6.4977,161.87,161.8,15.4511]
[1721145997546,6.4977,161.93,161.81,6.18]
[1721145997755,6.4977,161.93,161.8,21.6315]
[1721145997955,16.4977,161.93,161.79,6.1808]
[1721145998264,10.0,161.91,161.78,21.6329]
[1721145998431,6.4977,161.93,161.78,15.4521]
[1721145998752,10.0,161.91,161.78,15.4521]
[1721145998955,10.0,161.88,161.74,15.456]
[1721145999146,10.0,161.88,161.77,15.4538]
[1721145999322,10.0,161.88,161.7,40.29]
[1721145999323,20.0,161.87,161.7,40.29]
[1721145999530,10.0,161.84,161.73,6.1829]
[1721145999934,0.34,161.83,161.73,6.1829]
[1721146000143,0.34,161.83,161.72,0.8286455]
[1721146000351,16.3335,161.82,161.72,0.8286455]
[1721146000563,20.34,161.81,161.72,0.8286455]
[1721146000738,20.34,161.81,161.73,6.1829]
[1721146001050,20.34,161.81,161.72,7.0120455]
[1721146001250,20.34,161.81,161.72,0.8286455]
[1721146001665,6.46883537,161.8,161.72,0.8286455]
[1721146001835,0.34,161.79,161.72,0.8286455]
[1721146002029,10.0,161.76,161.72,0.8286455]
[1721146002237,0.34,161.75,161.72,0.8286455]
[1721146002757,20.34,161.75,161.72,0.8286455]
[1721146002962,10.0,161.74,161.72,0.6486455]
[1721146003145,10.0,161.74,161.72,0.4686455]
[1721146003668,10.0,161.71,161.59,15.4703]
[1721146003867,20.0,161.7,161.59,15.4703]
[1721146004161,20.0,161.7,161.61,6.1877]
[1721146004353,10.0,161.71,161.6,15.4695]
[1721146004554,10.0,161.68,161.58,6.1886]
[1721146004730,20.0,161.7,161.56,0.8286455]
[1721146004731,55.0,161.67,161.56,0.8286455]
[1721146004931,20.17,161.66,161.56,0.8286455]
[1721146005360,0.17,161.65,161.57,6.1891]
[1721146005551,0.17,161.65,161.59,6.1884]
[1721146005756,0.17,161.65,161.6,15.4699]
[1721146005940,0.17,161.65,161.64,6.1865]
[1721146006134,0.17,161.66,161.62,21.6547]
[1721146006336,4.4034,161.72,161.62,21.6548]
[1721146006635,24.4034,161.72,161.57,15.4723]
[1721146006856,10.0,161.68,161.56,0.8286455]
[1721146007058,10.0,161.66,161.56,0.8286455]
[1721146007256,10.0,161.64,161.56,0.8286455]
[1721146007431,10.0,161.61,161.56,0.8286455]
[1721146007758,0.34,161.6,161.56,0.8286455]
[1721146008055,0.17,161.59,161.56,0.8286455]